bitfinex/quotes_ETHUSD_20250106
["timestamp","ask_amount","ask_price","bid_price","bid_amount"]
[1736171846003,0.03247978,3652.8,3652.4,35.0]
[1736171847121,2.14819528,3653.0,3652.5,0.0843]
[1736171847423,1.32229528,3653.0,3652.5,2.82214]
[1736171847602,0.03141369,3652.9,3652.5,2.82214]
[1736171847927,0.03141369,3652.9,3652.6,35.0]
[1736171852808,0.03141369,3652.9,3652.7,0.0273743]
[1736171853027,0.17669056,3653.0,3652.8,2.73762]
[1736171853526,0.17669056,3653.0,3652.9,35.0]
[1736171858030,0.17669056,3653.0,3652.1,2.63159872]
[1736171858031,2.91087574,3653.0,3652.1,3.0]
[1736171858235,0.7584,3652.9,3652.1,3.0]
[1736171858410,0.7584,3652.9,3652.2,35.0]
[1736171858411,0.7906667,3652.9,3652.2,35.0]
[1736171858612,0.7584,3652.9,3652.2,35.0]
[1736171860036,0.03208359,3652.8,3652.2,35.0]
[1736171860224,0.7584,3652.9,3652.2,35.0]
[1736171860427,0.03204509,3652.7,3652.2,35.0]
[1736171860727,0.7584,3652.9,3652.2,35.0]
[1736171860924,0.7584,3652.9,3652.4,2.63159872]
[1736171861134,0.03208359,3652.8,3652.6,3.0]
[1736171861439,0.17339574,3653.0,3652.9,2.73755]
[1736171861621,0.17339574,3653.0,3652.9,5.84922213]
[1736171861800,0.17339574,3653.0,3652.9,5.82185]
[1736171863198,0.17339574,3653.0,3652.9,5.73755]
[1736171866780,0.17339574,3653.0,3652.9,3.0]
[1736171867307,0.17339574,3653.0,3652.9,5.73755]
[1736171868411,0.17339574,3653.0,3652.9,3.0]
[1736171868609,0.17339574,3653.0,3652.8,3.0]
[1736171869246,0.17339574,3653.0,3652.8,3.02737214]
[1736171870014,0.17339574,3653.0,3652.9,35.0]
[1736171871455,0.17339574,3653.0,3652.9,37.73755]
[1736171876892,0.17339574,3653.0,3652.9,40.73755]
[1736171880572,0.17339574,3653.0,3652.9,40.82935]
[1736171881198,0.17339574,3653.0,3652.9,40.83685]
[1736171883306,0.17339574,3653.0,3652.9,41.38685]
[1736171883670,0.17339574,3653.0,3652.9,40.83685]
[1736171884874,0.17339574,3653.0,3652.9,41.38685]
[1736171885969,0.17339574,3653.0,3652.9,43.73407587]
[1736171886779,0.17339574,3653.0,3652.9,43.18407587]
[1736171887602,0.17339574,3653.0,3652.9,44.32400307]
[1736171888027,0.005,3653.4,3653.3,2.75225]
[1736171888227,0.005,3653.4,3653.3,8.49551185]
[1736171888528,0.005,3653.4,3653.3,8.46814872]
[1736171888688,0.005,3653.4,3653.3,43.46814872]
[1736171890328,0.005,3653.4,3653.3,45.81537459]
[1736171891370,0.005,3653.4,3653.3,37.34722587]
[1736171891592,0.005,3653.4,3653.3,40.08447587]
[1736171892022,0.005,3653.4,3653.3,40.75225]
[1736171893599,0.005,3653.4,3653.3,38.0]
[1736171896211,0.005,3653.4,3653.3,35.0]
[1736171896941,0.359976,3653.4,3653.3,35.0]
[1736171898041,1.18496655,3653.4,3653.3,35.0]
[1736171900347,0.82999055,3653.4,3653.3,35.0]
[1736171900643,0.7989,3653.4,3653.3,35.0]
[1736171901148,0.7989,3653.4,3652.7,3.0]
[1736171901304,0.7989,3653.4,3652.8,0.02737207]
[1736171901500,0.02961132,3653.3,3652.9,35.0]
[1736171901872,0.7989,3653.4,3652.9,35.0]
[1736171902028,0.02957283,3653.2,3652.9,35.0]
[1736171902206,0.7989,3653.4,3652.9,35.0]
[1736171902408,0.02961132,3653.3,3652.9,35.0]
[1736171902608,0.7989,3653.4,3652.9,35.0]
[1736171902809,0.02961132,3653.3,3652.9,35.0]
[1736171905243,0.832,3653.2,3652.9,35.0]
[1736171907055,0.02953434,3653.1,3652.9,35.0]
[1736171907217,0.832,3653.2,3652.9,35.0]
[1736171907548,0.02953434,3653.1,3652.9,35.0]
[1736171907942,2.73725,3653.3,3652.5,0.0918]
[1736171907943,0.8141,3653.3,3652.5,0.0918]
[1736171908262,0.02942611,3653.2,3652.5,0.0918]
[1736171908440,0.02942611,3653.2,3653.1,35.0]
[1736171908633,0.7928,3653.3,3653.1,35.0]
[1736171908815,0.0294683,3653.2,3653.1,35.0]
[1736171909021,0.7928,3653.3,3653.1,35.0]
[1736171909222,0.0294683,3653.2,3653.1,35.0]
[1736171909443,0.7928,3653.3,3653.1,35.0]
[1736171909751,0.0294683,3653.2,3653.1,35.0]
[1736171910435,0.7928,3653.3,3653.1,35.0]
[1736171910632,0.0294683,3653.2,3653.1,35.0]
[1736171910961,0.7928,3653.3,3653.1,35.0]
[1736171911259,0.0294683,3653.2,3653.1,35.0]
[1736171911433,0.7928,3653.3,3653.1,35.0]
[1736171911819,0.0294683,3653.2,3653.1,35.0]
[1736171912055,0.7928,3653.3,3653.1,35.0]
[1736171912294,0.0294683,3653.2,3653.1,35.0]
[1736171912466,0.7928,3653.3,3653.1,35.0]
[1736171912666,0.0294683,3653.2,3653.1,35.0]
[1736171912866,0.7928,3653.3,3653.1,35.0]
[1736171913071,0.0294683,3653.2,3652.5,2.73784]
[1736171913489,0.0294683,3653.2,3652.6,3.0]
[1736171913802,0.0294683,3653.2,3652.6,38.0]
[1736171914261,3.53005,3653.3,3652.6,38.0]
[1736171914599,0.0294298,3653.1,3652.6,38.0]
[1736171914794,3.99816421,3653.3,3652.6,38.0]
[1736171914795,0.0294683,3653.2,3652.6,38.0]
[1736171915098,0.0294298,3653.1,3652.6,38.0]
[1736171915302,3.99816421,3653.3,3652.6,38.0]
[1736171915590,0.02939131,3653.0,3652.6,38.0]
[1736171915809,3.99816421,3653.3,3652.6,38.0]
[1736171915968,2.73734,3653.2,3652.6,38.0]
[1736171916167,2.7668083,3653.2,3652.6,38.0]
[1736171916792,0.756,3653.1,3652.6,38.0]
[1736171917111,0.02939131,3653.0,3652.6,38.0]
[1736171917890,0.756,3653.1,3652.6,38.0]
[1736171918071,3.49345,3653.1,3652.6,38.0]
[1736171918273,0.02939131,3653.0,3652.6,38.0]
[1736171918466,2.76692131,3653.0,3652.6,35.0]
[1736171918707,3.52941,3652.9,3652.6,35.0]
[1736171918907,3.55876281,3652.9,3652.6,35.0]
[1736171919430,0.7836,3652.7,3652.6,35.0]
[1736171921339,3.5213,3652.7,3652.6,35.0]
[1736171921675,3.54911463,3652.7,3652.6,35.0]
[1736171922315,0.81141463,3652.7,3652.6,35.0]
[1736171922612,0.7836,3652.7,3652.6,35.0]
[1736171923116,0.81141463,3652.7,3652.6,35.0]
[1736171923321,0.7836,3652.7,3652.6,35.0]
[1736171923980,0.81139137,3652.7,3652.6,35.0]
[1736171927318,0.02779137,3652.7,3652.6,35.0]
[1736171927517,1.14609213,3653.2,3652.7,3.0]
[1736171927689,1.14609213,3653.2,3652.8,0.02737301]
[1736171928482,1.14609213,3653.2,3652.7,3.0]
[1736171928783,2.73753,3653.0,3652.6,35.0]
[1736171929384,0.7634,3653.1,3652.6,35.0]
[1736171929580,3.39499872,3653.1,3652.6,35.0]
[1736171929905,3.5011,3652.7,3652.6,35.0]
[1736171930114,2.738,3652.3,3651.7,1.13660447]
[1736171930310,0.8191,3652.2,3651.7,1.13660447]
[1736171930508,0.8191,3652.2,3652.0,35.0]
[1736171933625,3.55718,3652.2,3652.0,35.0]
[1736171933926,0.02632786,3652.1,3652.0,35.0]
[1736171934126,3.912898,3652.2,3652.0,35.0]
[1736171934312,0.02632786,3652.1,3652.0,35.0]
[1736171934530,3.912898,3652.2,3652.0,35.0]
[1736171934728,0.02632786,3652.1,3652.0,35.0]
[1736171935042,0.8191,3652.2,3652.0,35.0]
[1736171935441,0.02632786,3652.1,3652.0,35.0]
[1736171935853,0.8216,3652.4,3652.0,35.0]
[1736171936419,0.8216,3652.4,3651.6,3.0]
[1736171936642,0.38237253,3652.3,3651.5,5.82282]
[1736171936832,0.02642553,3652.3,3651.5,5.82282]
[1736171937039,0.02642553,3652.3,3651.7,35.0]
[1736171937345,0.02642553,3652.3,3651.8,0.02738033]
[1736171937530,0.02642553,3652.3,3651.8,3.02738033]
[1736171937845,0.8075,3652.7,3652.0,0.0843]
[1736171938147,0.02616078,3652.2,3652.0,2.82247]
[1736171938345,1.14609213,3652.8,3652.1,0.02737739]
[1736171938568,1.14609213,3652.8,3652.2,2.73806]
[1736171938748,0.02635332,3652.7,3652.5,0.0843]
[1736171938906,0.02635332,3652.7,3652.5,3.0843]
[1736171939114,1.14609213,3652.8,3652.5,3.0843]
[1736171939314,1.14609213,3653.2,3652.5,3.0843]
[1736171939715,1.14609213,3653.2,3652.6,0.02737315]
[1736171940960,0.7722,3653.4,3652.6,0.02737315]
[1736171941665,0.7722,3653.4,3652.5,5.82214]
[1736171942383,0.02687136,3653.3,3652.5,5.82214]
[1736171942984,0.02687136,3653.3,3652.6,0.02737306]
[1736171945269,0.02687136,3653.3,3652.6,2.76514306]
[1736171945455,0.02687136,3653.3,3652.7,2.7377]
[1736171945660,0.02687136,3653.3,3652.8,0.02737286]
[1736171945997,0.02687136,3653.3,3652.5,5.82212]
[1736171946179,0.02687136,3653.3,3652.9,35.0]
[1736171954685,0.8268,3653.2,3652.9,35.0]
[1736171956898,0.02727673,3653.1,3652.9,35.0]
[1736171957101,0.8268,3653.2,3652.9,35.0]
[1736171957400,0.02723823,3653.0,3652.9,35.0]
[1736171957601,0.8268,3653.2,3652.9,35.0]
[1736171957936,0.02727673,3653.1,3652.9,35.0]
[1736171958138,0.8268,3653.2,3652.9,35.0]
[1736171958337,0.02723823,3653.0,3652.9,35.0]
[1736171958542,0.8268,3653.2,3652.9,35.0]
[1736171958849,0.02630252,3653.0,3652.5,5.73784]
[1736171959019,0.7869,3653.3,3652.5,5.73784]
[1736171959542,0.02637951,3653.2,3652.5,5.73784]
[1736171959717,0.02637951,3653.2,3653.0,35.0]
[1736171959913,3.06329139,3653.1,3653.0,35.0]
[1736171960114,3.89239139,3653.1,3653.0,35.0]
[1736171960318,3.91867812,3653.1,3653.0,35.0]
[1736171961656,4.46389805,3653.1,3653.0,35.0]
[1736171961816,4.46389805,3653.1,3652.1,3.0]
[1736171961817,2.73749,3653.0,3652.1,3.0]
[1736171962138,0.02613993,3652.9,3652.2,0.02737782]
[1736171962350,0.02613993,3652.9,3652.2,35.02737782]
[1736171962520,0.02613993,3652.9,3652.2,35.0]
[1736171964821,2.73772,3652.7,3652.2,35.0]
[1736171965045,0.7513,3652.5,3652.2,35.0]
[1736171965233,2.738,3652.3,3652.2,35.0]
[1736171965434,3.5271,3652.3,3652.2,35.0]
[1736171965658,3.55280798,3652.3,3652.2,35.0]
[1736171966341,0.81480798,3652.3,3652.2,35.0]
[1736171966938,3.55280798,3652.3,3652.2,35.0]
[1736171967144,4.80993003,3652.3,3652.2,35.0]
[1736171969254,4.45464923,3652.3,3652.2,35.0]
[1736171969974,3.41494632,3652.3,3652.2,35.0]
[1736171971060,0.67694632,3652.3,3652.2,35.0]
[1736171971957,0.02570798,3652.3,3652.2,35.0]
[1736171972161,1.6961195,3652.5,3652.2,35.0]
[1736171972377,0.02536801,3652.4,3652.2,35.0]
[1736171976152,0.02536801,3652.4,3651.8,0.2222]
[1736171976548,0.02536801,3652.4,3651.9,35.0]
[1736171977903,0.7583,3652.3,3651.9,35.0]
[1736171978189,2.73809,3652.2,3651.9,35.0]
[1736171978394,3.49633,3652.3,3651.9,35.0]
[1736171978591,0.02510896,3652.1,3651.9,35.0]
[1736171978770,3.49634,3652.3,3651.9,35.0]
[1736171978968,0.02514748,3652.2,3652.0,0.24958238]
[1736171979169,1.14705563,3652.6,3652.0,0.24958238]
[1736171979351,0.02526301,3652.5,3652.0,0.24958238]
[1736171979751,3.56283,3652.8,3652.0,0.24958238]
[1736171980503,0.02528958,3652.7,3652.0,0.24958238]
[1736171980898,3.56283,3652.8,3652.0,0.24958238]
[1736171981268,0.02528958,3652.7,3652.0,0.2222]
[1736171981595,2.73785,3652.5,3652.1,35.0]
[1736171982268,0.8252,3652.8,3652.1,35.0]
[1736171982584,2.73795,3652.4,3652.1,35.0]
[1736171982793,0.85453555,3652.3,3652.1,35.0]
[1736171983757,2.73807,3652.2,3652.1,35.0]
[1736171983961,0.85453555,3652.3,3652.1,35.0]
[1736171984160,3.59260555,3652.3,3652.1,35.0]
[1736171985898,0.02513555,3652.3,3652.1,35.0]
[1736171986292,5.17620034,3652.5,3652.1,35.0]
[1736171986494,0.02509704,3652.2,3652.1,35.0]
[1736171986800,2.43834034,3652.5,3652.1,35.0]
[1736171987161,0.02517406,3652.4,3652.1,35.0]
[1736171988179,4.63444887,3652.8,3652.1,35.0]
[1736171988465,0.02528958,3652.7,3652.1,35.0]
[1736171991867,2.76298958,3652.7,3652.1,35.0]
[1736171994815,0.02528958,3652.7,3652.1,35.0]
[1736171995820,1.14660887,3652.9,3652.1,35.0]
[1736171996305,0.02559964,3652.8,3652.1,35.0]
[1736171996808,5.22361944,3653.0,3652.1,35.0]
[1736171997011,2.76318814,3652.9,3652.1,35.0]
[1736171997171,0.02563814,3652.9,3652.1,35.0]
[1736171997370,0.02563814,3652.9,3652.1,37.73814]
[1736171997820,0.02563814,3652.9,3652.1,35.0]
[1736171999702,2.73763,3652.8,3652.1,35.0]
[1736172000023,0.02556114,3652.7,3652.1,35.0]
[1736172001305,0.02556114,3652.7,3652.2,0.2222]
[1736172001895,0.02556114,3652.7,3652.3,35.0]
[1736172002606,0.02556114,3652.7,3652.6,2.73777]
[1736172002820,0.02556114,3652.7,3652.6,0.2222]
[1736172003108,0.02556114,3652.7,3652.6,35.2222]
[1736172003421,0.02556114,3652.7,3652.6,37.95997]
[1736172003716,0.02556114,3652.7,3652.6,37.97497]
[1736172005025,0.02556114,3652.7,3652.6,40.97497]
[1736172005220,0.02556114,3652.7,3652.6,38.2222]
[1736172005392,0.02556114,3652.7,3652.2,3.87424861]
[1736172005719,0.02556114,3652.7,3652.4,2.73785]
[1736172005951,0.02556114,3652.7,3652.6,0.2222]
[1736172006091,0.02556114,3652.7,3652.6,2.95997]
[1736172006590,0.02556114,3652.7,3652.6,37.97497]
[1736172006987,0.02556114,3652.7,3652.6,37.95997]
[1736172008796,0.02556114,3652.7,3652.6,35.2222]
[1736172009127,0.02556114,3652.7,3652.6,35.0]
[1736172009430,0.02556114,3652.7,3652.0,1.35839861]
[1736172009736,2.76328114,3652.7,3652.0,1.35839861]
[1736172010032,2.76328114,3652.7,3652.1,35.0]
[1736172010202,0.7949,3652.4,3652.1,35.0]
[1736172011237,2.738,3652.3,3652.1,35.0]
[1736172012736,2.73807,3652.2,3652.1,35.0]
[1736172013112,3.49187,3652.2,3652.1,35.0]
[1736172013309,4.22950789,3652.2,3652.1,35.0]
[1736172013911,0.7565,3651.9,3651.4,5.0]
[1736172014520,2.73852,3651.7,3651.5,35.0]
[1736172014722,2.73852,3651.6,3651.5,35.0]
[1736172015214,3.51132,3651.6,3651.5,35.0]
[1736172015420,4.39944487,3651.6,3651.5,35.0]
[1736172015922,4.39944487,3651.6,3651.4,5.0]
[1736172016513,0.8321,3652.1,3651.5,35.0]
[1736172019529,2.73831,3651.9,3651.4,5.0]
[1736172020042,2.73831,3651.9,3651.5,35.0]
[1736172020241,0.7933,3651.9,3651.5,35.0]
[1736172020539,0.7933,3651.7,3651.4,5.0]
[1736172020744,2.7386,3651.5,3651.4,5.0]
[1736172021303,6.71629872,3651.5,3651.4,5.0]
[1736172021717,7.61776102,3651.5,3651.4,5.0]
[1736172022340,10.61776102,3651.5,3651.4,5.0]
[1736172023104,13.77069095,3651.5,3651.4,5.0]
[1736172023337,16.52755772,3651.5,3651.4,5.0]
[1736172026137,14.72588347,3651.5,3651.4,5.0]
[1736172028753,15.86942213,3651.5,3651.4,5.0]
[1736172029854,14.72588347,3651.5,3651.4,5.0]
[1736172030655,6.34315168,3651.5,3651.4,5.0]
[1736172030858,4.99131798,3651.5,3651.4,5.0]
[1736172031371,3.6400623,3651.5,3651.4,5.0]
[1736172032045,0.9014623,3651.5,3651.4,5.0]
[1736172032422,0.9014623,3651.5,3651.4,10.73867]
[1736172032751,1.14353866,3652.2,3651.5,5.7386]
[1736172032931,1.14353866,3652.2,3651.7,2.73842]
[1736172033139,1.14353866,3652.2,3651.9,0.2222]
[1736172033628,1.14353866,3652.2,3651.9,2.96049]
[1736172034063,2.73762,3652.9,3651.9,2.96049]
[1736172034222,2.73762,3652.9,3651.9,0.2222]
[1736172034623,2.73762,3652.9,3651.9,0.24958024]
[1736172034842,5.36901872,3653.1,3651.9,2.98780024]
[1736172035023,2.73748,3653.0,3651.9,2.98780024]
[1736172035924,2.73748,3653.0,3651.9,2.96042]
[1736172036484,2.63159872,3653.1,3651.9,2.96042]
[1736172036626,2.63159872,3653.1,3651.9,0.2222]
[1736172036627,3.05237263,3653.1,3651.9,0.2222]
[1736172036956,2.73785,3652.6,3651.9,0.2222]
[1736172037127,2.73785,3652.5,3651.9,0.2222]
[1736172037334,2.73455455,3652.5,3651.9,0.2222]
[1736172037560,2.63159872,3652.8,3651.9,0.2222]
[1736172037766,2.73794,3652.4,3651.9,0.2222]
[1736172038960,3.40339872,3652.5,3651.5,0.2222]
[1736172039184,2.73792,3652.4,3651.5,0.2222]
[1736172039383,2.63159872,3652.1,3651.5,0.2222]
[1736172039711,5.36951872,3652.4,3651.5,0.2222]
[1736172039835,2.73828,3652.0,3651.5,0.2222]
[1736172040029,2.73832,3651.9,3651.4,5.0]
[1736172042653,1.15577581,3652.3,3651.4,5.0]
[1736172042855,2.73817,3652.1,3651.4,5.0]
[1736172043151,1.15577581,3652.3,3651.4,5.0]
[1736172043371,2.63159872,3652.1,3651.4,5.0]
[1736172043549,2.7386,3651.5,3651.4,5.0]
[1736172045637,5.37019872,3651.5,3651.4,5.0]
[1736172048771,5.9229814,3651.5,3651.4,5.0]
[1736172049884,3.29138268,3651.5,3651.4,5.0]
[1736172050082,0.55278268,3651.5,3651.4,5.0]
[1736172050282,3.52121,3651.9,3651.4,5.0]
[1736172050499,1.14353866,3652.0,3651.4,5.0]
[1736172050500,1.26253866,3652.0,3651.4,5.0]
[1736172051562,0.119,3652.0,3651.4,5.0]
[1736172052515,2.85724,3652.0,3651.4,5.0]
[1736172052829,0.55427655,3651.8,3651.4,5.0]
[1736172053611,2.73815,3652.1,3651.4,5.0]
[1736172054508,2.73823,3652.0,3651.4,5.0]
[1736172055014,2.73823,3652.0,3651.5,35.0]
[1736172055579,0.65480432,3652.2,3651.5,35.0]
[1736172055830,2.73806,3652.3,3651.5,35.0]
[1736172056197,1.14353866,3652.2,3651.5,35.0]
[1736172057225,3.88163866,3652.2,3651.5,35.0]
[1736172057515,3.63864004,3652.2,3651.5,35.0]
[1736172058614,2.7381,3652.2,3651.5,35.0]
[1736172060315,3.63896548,3652.1,3651.5,35.0]
[1736172060977,2.73825,3652.0,3651.5,35.0]
[1736172062620,1.14353866,3652.3,3651.5,35.0]
[1736172062815,1.14353866,3652.3,3651.4,5.0]
[1736172062816,2.63159872,3652.1,3651.4,5.0]
[1736172063112,2.73833,3651.9,3651.4,5.0]
[1736172063319,2.73833,3651.9,3651.5,35.0]
[1736172063904,2.63833,3651.9,3651.5,35.0]
[1736172064219,2.73846,3651.7,3651.4,5.0]
[1736172064386,2.7386,3651.5,3651.4,5.0]
[1736172064587,2.7386,3651.5,3651.4,40.0]
[1736172065691,2.7386,3651.5,3651.4,5.0]
[1736172067278,3.28283446,3651.5,3651.4,5.0]
[1736172067999,7.65727136,3651.5,3651.4,5.0]
[1736172069711,9.91000549,3651.5,3651.4,5.0]
[1736172070997,14.00565633,3651.5,3651.4,5.0]
[1736172072328,11.71243859,3651.5,3651.4,5.0]
[1736172073933,14.00565633,3651.5,3651.4,5.0]
[1736172075334,11.71243859,3651.5,3651.4,5.0]
[1736172076405,14.00565633,3651.5,3651.4,5.0]
[1736172078495,13.24245633,3651.5,3651.4,5.0]
[1736172078834,10.94923859,3651.5,3651.4,5.0]
[1736172079889,10.69883859,3651.5,3651.4,5.0]
[1736172080094,11.51553859,3651.5,3651.4,5.0]
[1736172081111,13.80875633,3651.5,3651.4,5.0]
[1736172081746,9.49981943,3651.5,3651.4,5.0]
[1736172081946,7.01161943,3651.5,3651.4,5.0]
[1736172082247,6.34838497,3651.5,3651.4,5.0]
[1736172082627,2.25273413,3651.5,3651.4,5.0]
[1736172084318,1.14718325,3651.7,3651.4,5.0]
[1736172085758,2.0482769,3651.7,3651.5,0.2222]
[1736172086547,2.0482769,3651.7,3651.6,35.0]
[1736172086715,1.72015863,3651.9,3651.6,35.0]
[1736172086716,1.14718325,3651.9,3651.6,35.0]
[1736172087525,1.14718325,3651.9,3651.7,0.2222]
[1736172088355,3.40130796,3652.0,3651.8,35.0]
[1736172088850,3.40130796,3652.0,3651.9,0.2222]
[1736172089577,3.40130796,3652.0,3651.9,35.2222]
[1736172089918,2.86652218,3652.5,3651.9,35.2222]
[1736172089919,2.25412471,3652.5,3651.9,35.2222]
[1736172091620,0.90109365,3652.5,3651.9,35.2222]
[1736172092861,6.6963209,3652.6,3651.9,35.2222]
[1736172094264,6.6963209,3652.6,3651.9,0.2222]
[1736172094457,0.90109365,3652.5,3651.9,0.2222]
[1736172094755,0.90109365,3652.5,3652.0,35.0]
[1736172095518,0.90109365,3652.5,3652.1,0.2222]
[1736172096557,3.29430232,3652.8,3652.1,0.2222]
[1736172096926,2.73764,3652.8,3652.2,35.0]
[1736172097321,2.73772,3652.7,3652.2,35.0]
[1736172097658,1.14718325,3652.9,3652.2,35.0]
[1736172097659,1.6965564,3652.9,3652.2,35.0]
[1736172097831,2.73778,3652.6,3652.1,0.2222]
[1736172098641,2.73787,3652.5,3652.1,0.2222]
[1736172099155,2.63159872,3652.7,3652.1,0.2222]
[1736172099372,0.9004851,3652.5,3652.1,0.2222]
[1736172100081,0.9004851,3652.5,3651.7,0.2222]
[1736172100264,1.6906851,3652.6,3651.7,0.2222]
[1736172100670,2.73798,3652.4,3651.7,0.2222]
[1736172101358,4.4284851,3652.6,3651.7,0.24958212]
[1736172101557,3.6382851,3652.6,3651.7,0.24958212]
[1736172101869,1.14718325,3652.6,3651.7,0.2222]
[1736172102072,2.73786,3652.5,3651.7,0.2495821]
[1736172102267,1.14718325,3652.6,3651.7,0.24958169]
[1736172102781,3.88498325,3652.6,3651.7,0.24958169]
[1736172102989,2.7378,3652.6,3651.7,0.24958169]
[1736172103355,3.88483325,3652.8,3651.8,0.2222]
[1736172103562,3.88483325,3652.8,3651.9,35.24958037]
[1736172103760,1.26618325,3652.8,3652.0,0.2222]
[1736172104083,2.73771,3652.7,3652.0,0.2222]
[1736172104686,0.119,3652.8,3652.0,0.2222]
[1736172104846,0.119,3652.8,3652.0,0.24957949]
[1736172105042,2.7377,3652.7,3652.0,0.24957949]
[1736172106281,0.119,3652.8,3652.0,0.2222]
[1736172106483,0.64671551,3652.8,3652.0,0.2222]
[1736172106664,2.73791,3652.5,3652.0,0.2222]
[1736172107047,3.63771656,3652.7,3652.0,0.2222]
[1736172107864,0.89995656,3652.7,3652.0,0.2222]
[1736172108200,2.73778,3652.6,3652.0,0.2222]
[1736172110108,2.73778,3652.6,3652.1,35.0]
[1736172111706,2.73786,3652.5,3652.1,35.0]
[1736172112403,2.73788,3652.5,3652.1,35.0]
[1736172112611,0.119,3652.8,3652.2,0.02738123]
[1736172112781,0.119,3652.8,3651.4,5.0]
[1736172112782,0.119,3652.8,3651.8,2.74584]
[1736172112981,0.119,3652.8,3651.9,2.96049]
[1736172113213,0.119,3652.8,3652.3,35.0]
[1736172114076,0.119,3652.8,3652.4,0.2222]
[1736172115035,3.28694315,3652.9,3652.4,0.2222]
[1736172116636,2.73773,3652.7,3652.3,35.0]
[1736172116810,2.73773,3652.7,3652.2,0.2222]
[1736172117203,2.73787,3652.5,3652.2,0.2222]
[1736172117536,2.738,3652.3,3651.8,0.2222]
[1736172117762,2.73805,3652.3,3651.6,35.0]
[1736172119205,3.27443754,3652.3,3651.6,35.0]
[1736172119408,0.7694,3652.7,3651.7,0.2222]
[1736172119802,1.14718325,3652.8,3652.0,0.2222]
[1736172120002,1.14718325,3652.8,3652.1,0.02737857]
[1736172120208,1.14718325,3652.6,3652.1,0.02737857]
[1736172120428,1.14718325,3652.6,3652.2,35.0]
[1736172121669,0.67730775,3652.9,3652.2,35.0]
[1736172121821,1.14718325,3653.0,3652.3,0.2222]
[1736172122009,1.14718325,3653.0,3652.4,0.2222]
[1736172122205,1.14718325,3653.0,3652.6,0.2222]
[1736172122634,0.90058333,3652.8,3652.6,0.2222]
[1736172122840,0.93048977,3652.8,3652.6,2.95997]
[1736172123032,0.90058333,3652.8,3652.6,2.95997]
[1736172123239,0.90058333,3652.8,3652.6,2.98734499]
[1736172123466,0.90058333,3652.8,3652.6,0.2222]
[1736172124063,1.14718325,3653.0,3652.6,0.2222]
[1736172124064,1.15218325,3653.4,3652.6,0.24957502]
[1736172124224,0.02782436,3652.7,3652.6,0.24957502]
[1736172124424,1.15218325,3653.4,3652.7,2.73767]
[1736172124637,1.15218325,3653.4,3652.8,0.02737435]
[1736172124836,1.15218325,3653.4,3652.9,0.2222]
[1736172125073,0.02593294,3653.3,3652.9,0.2222]
[1736172127329,0.02593294,3653.3,3653.2,0.2222]
[1736172127523,0.005,3653.4,3653.2,0.2222]
[1736172127831,0.005,3653.4,3653.3,35.0]
[1736172134063,0.005,3653.4,3653.3,37.95945]
[1736172135063,0.005,3653.4,3653.3,35.2222]
[1736172135661,0.005,3653.4,3653.3,38.52445]
[1736172135885,0.005,3653.4,3653.3,41.52445]
[1736172141895,1e-05,3653.4,3653.3,41.77445]
[1736172142289,1e-05,3653.4,3653.3,46.77445]
[1736172142602,1e-05,3653.4,3653.3,44.79124]
[1736172143117,1e-05,3653.4,3653.3,45.09868052]
[1736172143325,0.01,3654.6,3654.5,2.73635]
[1736172143530,0.01,3654.6,3654.5,8.93294872]
[1736172143531,1e-05,3654.6,3654.5,8.93294872]
[1736172143837,1e-05,3654.6,3654.5,9.18294872]
[1736172144023,1e-05,3654.6,3654.5,44.18294872]
[1736172144224,1e-05,3654.6,3654.5,44.43294872]
[1736172144368,1e-05,3654.6,3654.5,44.65504872]
[1736172146680,1e-05,3654.6,3654.5,44.79396826]
[1736172147320,1e-05,3654.6,3654.5,49.79396826]
[1736172147481,1e-05,3654.6,3654.5,47.56885826]
[1736172148791,1e-05,3654.6,3654.5,44.79396826]
[1736172148991,1e-05,3654.6,3654.5,45.09278946]
[1736172149314,1e-05,3654.6,3654.5,45.34278946]
[1736172150411,1e-05,3654.6,3654.5,44.70386992]
[1736172150611,1e-05,3654.6,3654.5,37.96595]
[1736172150987,1e-05,3654.6,3654.5,37.75135]
[1736172151177,1e-05,3654.6,3654.5,40.75135]
[1736172151380,1e-05,3654.6,3654.5,37.74385]
[1736172151775,1e-05,3654.6,3654.5,35.0]
[1736172152025,1e-05,3654.6,3654.5,38.0]
[1736172152416,0.76611,3654.6,3654.5,38.0]
[1736172152641,0.76611,3654.6,3654.5,35.0]
[1736172160834,1e-05,3654.6,3654.5,35.0]
[1736172169749,0.352833,3654.6,3654.5,35.0]
[1736172169955,1.11873578,3654.6,3654.5,35.0]
[1736172170328,0.8194,3654.6,3654.5,35.0]
[1736172171132,0.8323,3654.9,3654.5,35.0]
[1736172173970,0.7834,3655.2,3654.6,0.02736207]
[1736172174332,0.7834,3655.2,3654.6,5.76360207]
[1736172174669,1.32269433,3655.5,3654.7,0.2221]
[1736172174874,1.32269433,3655.5,3654.8,0.02735825]
[1736172175204,1.97898325,3655.7,3654.8,0.02735825]
[1736172175337,1.97898325,3655.7,3654.9,2.73602]
[1736172175539,1.97898325,3655.7,3655.0,0.02735645]
[1736172175730,1.97898325,3655.7,3654.8,3.0]
[1736172175930,1.97898325,3655.7,3654.7,0.2221]
[1736172176163,1.97898325,3655.7,3654.6,5.73624]
[1736172176164,2.73562,3655.5,3654.6,5.73624]
[1736172176433,2.73562,3655.5,3654.7,0.02735855]
[1736172178875,2.73454604,3655.5,3654.7,0.02735855]